bitfinex/quotes_ETHUSD_20251021
["timestamp","ask_amount","ask_price","bid_price","bid_amount"]
[1761013686888,0.4363,3937.7,3936.7,3.282]
[1761013687088,0.4363,3937.7,3936.8,3.281]
[1761013687333,4.201992,3937.6,3936.8,3.281]
[1761013687516,0.8906853,3937.5,3936.6,0.002]
[1761013687716,0.8906853,3937.5,3936.7,3.281]
[1761013687717,1.3269853,3937.5,3936.7,3.281]
[1761013687891,1.3269853,3937.5,3936.7,5.82119227]
[1761013688090,1.3269853,3937.5,3936.8,2.54012854]
[1761013688091,0.4363,3937.4,3936.8,2.54012854]
[1761013689307,0.4363,3937.4,3936.8,5.81912854]
[1761013689486,0.4363,3937.4,3936.8,2.54012854]
[1761013689691,0.4363,3937.4,3936.8,5.81912854]
[1761013690324,0.82295406,3937.4,3936.8,2.54012854]
[1761013690525,0.82295406,3937.4,3936.8,5.81912854]
[1761013690826,0.4363,3937.4,3936.8,3.279]
[1761013691325,0.1264,3936.9,3936.8,5.81913411]
[1761013691504,0.1264,3936.9,3936.8,2.54013411]
[1761013691704,0.1264,3936.9,3936.8,5.81813411]
[1761013692432,0.1264,3936.9,3936.8,3.278]
[1761013693138,0.1264,3936.9,3936.8,3.28]
[1761013693638,0.1264,3936.9,3936.8,0.002]
[1761013693806,0.5627,3936.9,3936.8,0.002]
[1761013694007,19.21923959,3936.9,3936.8,0.002]
[1761013694214,20.24550755,3936.9,3936.8,0.002]
[1761013694413,15.75799288,3936.9,3936.8,0.002]
[1761013694635,13.68621588,3936.9,3936.8,0.002]
[1761013694940,3.92660329,3936.9,3936.8,0.002]
[1761013695121,2.00467933,3936.9,3936.8,0.002]
[1761013695323,1.9604,3936.9,3936.8,0.002]
[1761013695506,2.3967,3936.9,3936.8,0.002]
[1761013695912,14.87315459,3936.9,3936.8,0.002]
[1761013696108,13.86832259,3936.9,3936.8,0.002]
[1761013696345,15.87669729,3936.9,3936.8,0.002]
[1761013696511,13.79463629,3936.9,3936.8,0.002]
[1761013696708,6.94514429,3936.9,3936.8,0.002]
[1761013697019,21.47777129,3936.9,3936.8,0.002]
[1761013697234,21.98465129,3936.9,3936.8,0.002]
[1761013697451,19.23773829,3936.9,3936.8,0.002]
[1761013697855,20.20394929,3936.9,3936.8,0.002]
[1761013698660,17.48801729,3936.9,3936.8,0.002]
[1761013698858,19.86470229,3936.9,3936.8,0.002]
[1761013699525,14.19245329,3936.9,3936.8,0.002]
[1761013700154,10.96216729,3936.9,3936.8,0.002]
[1761013700360,1.728,3936.9,3936.8,0.002]
[1761013700726,5.902022,3936.9,3936.8,0.002]
[1761013700944,8.44209159,3936.9,3936.8,0.002]
[1761013701157,15.41651759,3936.9,3936.8,0.002]
[1761013701322,4.474215,3936.9,3936.8,0.002]
[1761013701843,4.761215,3936.9,3936.8,0.002]
[1761013702044,5.049565,3936.9,3936.8,0.002]
[1761013702246,1.9456,3936.9,3936.8,0.002]
[1761013703036,4.472574,3936.9,3936.8,0.002]
[1761013703237,7.01264359,3936.9,3936.8,0.002]
[1761013703440,7.44784359,3936.9,3936.8,0.002]
[1761013703638,4.907774,3936.9,3936.8,0.002]
[1761013703933,6.52011159,3936.9,3936.8,0.002]
[1761013704564,6.95531159,3936.9,3936.8,0.002]
[1761013704736,4.415242,3936.9,3936.8,0.002]
[1761013705058,1.728,3936.9,3936.8,0.002]
[1761013705237,6.53039159,3936.9,3936.8,0.002]
[1761013705644,3.32128089,3937.2,3936.8,0.002]
[1761013705842,3.277,3937.2,3936.8,0.002]
[1761013706168,0.1264,3936.9,3936.8,0.002]
[1761013706326,0.1264,3936.9,3936.8,0.27717432]
[1761013706932,0.1264,3936.9,3936.8,0.002]
[1761013706933,0.5616,3936.9,3936.8,0.002]
[1761013707144,0.7792,3936.9,3936.8,0.002]
[1761013707361,0.1264,3936.9,3936.8,0.002]
[1761013707664,1.728,3937.4,3936.8,2.74963411]
[1761013707964,1.728,3937.4,3936.9,2.54006793]
[1761013708263,1.728,3937.4,3936.8,0.2095]
[1761013708841,1.728,3937.4,3936.8,2.74960974]
[1761013709065,1.728,3937.4,3936.8,3.27879647]
[1761013709380,1.728,3937.4,3936.8,0.73868673]
[1761013709551,1.728,3937.4,3936.8,2.54208706]
[1761013710065,1.728,3937.4,3936.9,2.54006265]
[1761013710365,1.728,3937.4,3936.8,0.002]
[1761013710568,0.4365,3937.3,3936.8,0.002]
[1761013710775,1.728,3937.4,3936.8,0.002]
[1761013711265,1.728,3937.4,3936.8,0.27717191]
[1761013711472,1.728,3937.4,3936.9,2.54006282]
[1761013711841,1.728,3937.4,3936.9,2.74756282]
[1761013712772,1.728,3937.4,3937.3,0.0872]
[1761013714142,1.728,3937.4,3937.3,0.2947]
[1761013714538,3.31927239,3937.8,3937.3,0.2947]
[1761013714865,3.31927239,3937.8,3937.3,0.0872]
[1761013715655,3.31927239,3937.8,3937.3,0.2947]
[1761013716060,3.31927239,3937.8,3937.3,0.0872]
[1761013716256,3.31927239,3937.8,3937.3,0.2947]
[1761013716464,1.728,3937.7,3937.3,0.2947]
[1761013716670,1.728,3937.7,3937.3,2.83449982]
[1761013717576,0.001,3937.8,3937.4,0.2075]
[1761013717770,0.001,3937.8,3937.4,2.53974409]
[1761013718878,0.001,3937.8,3937.3,0.0872]
[1761013719183,0.1264,3937.5,3937.1,3.271]
[1761013719380,0.1264,3937.5,3937.2,0.62321507]
[1761013719706,0.1264,3937.5,3937.2,0.83071507]
[1761013719853,0.1264,3937.5,3937.2,0.62321507]
[1761013720053,0.1264,3937.5,3937.2,3.16307731]
[1761013720356,0.1264,3937.5,3937.0,0.0872]
[1761013720556,0.1264,3937.1,3936.8,3.272]
[1761013721283,0.1264,3937.1,3936.8,0.002]
[1761013722511,18.52427292,3938.0,3937.0,5.08001016]
[1761013722669,0.001,3938.9,3938.8,2.53884431]
[1761013722851,0.001,3938.9,3938.8,21.76954398]
[1761013723054,0.001,3938.9,3938.8,6.81076085]
[1761013723727,0.001,3938.9,3938.8,3.50876085]
[1761013723936,0.001,3938.9,3938.3,2.53911226]
[1761013724235,0.001,3938.9,3938.7,3.302]
[1761013724394,0.001,3938.9,3938.8,2.53884431]
[1761013725020,0.001,3938.9,3938.8,2.96094431]
[1761013728626,0.001,3938.9,3938.8,2.53884431]
[1761013730213,0.001,3938.9,3938.8,3.37682531]
[1761013730640,0.001,3938.9,3938.8,3.79892531]
[1761013731918,0.001,3938.9,3938.8,3.37682531]
[1761013740357,0.001,3938.9,3938.8,3.286]
[1761013741555,0.001,3938.9,3938.8,5.82484431]
[1761013744353,0.001,3938.9,3938.8,6.24694431]
[1761013745266,0.001,3938.9,3938.8,20.02622744]
[1761013745465,0.001,3938.9,3938.8,19.89982744]
[1761013745634,0.001,3938.9,3938.8,22.14370693]
[1761013745835,0.001,3938.9,3938.8,24.37858693]
[1761013746675,0.001,3939.9,3939.6,2.53832876]
[1761013746867,0.001,3939.9,3939.6,5.82332876]
[1761013747070,0.001,3939.9,3939.6,6.24542876]
[1761013747276,0.001,3939.9,3939.6,8.50104109]
[1761013749759,0.001,3939.9,3939.6,10.73592109]
[1761013751370,0.001,3939.9,3939.8,3.0450799]
[1761013751670,0.001,3939.9,3939.8,4.79846189]
[1761013751872,0.001,3939.9,3939.8,5.22056189]
[1761013752079,0.001,3939.9,3939.8,6.5370702]
[1761013754764,0.001,3940.1,3940.0,4.77295106]
[1761013754963,0.001,3940.5,3940.2,3.04482223]
[1761013755179,1e-08,3940.7,3940.6,3.04456461]
[1761013755375,1e-08,3940.7,3940.6,22.32281782]
[1761013755695,1e-08,3940.7,3940.6,22.84594098]
[1761013756790,0.001,3941.4,3941.3,3.0441139]
[1761013757093,0.001,3941.4,3941.3,19.97899703]
[1761013757264,0.001,3941.4,3941.3,20.40109703]
[1761013757605,0.001,3941.4,3941.3,18.43399652]
[1761013757899,0.001,3941.4,3941.3,4.78111339]
[1761013758194,0.001,3941.4,3941.3,5.8192339]
[1761013758590,0.001,3941.4,3941.3,6.2413339]
[1761013759705,0.001,3941.4,3941.3,19.89421703]
[1761013760275,0.001,3941.4,3941.3,20.40109703]
[1761013761591,0.001,3941.4,3941.3,22.12909703]
[1761013761914,0.001,3941.4,3941.3,24.59087788]
[1761013762722,0.001,3941.4,3941.3,24.58887788]
[1761013764681,0.001,3941.4,3941.3,25.00832591]
[1761013766911,0.001,3941.8,3941.7,4.77185643]
[1761013767098,0.001,3942.2,3942.1,2.536719]
[1761013767416,0.001,3942.2,3942.1,20.77200206]
[1761013767611,0.001,3942.2,3942.1,22.50000206]
[1761013767813,0.001,3942.2,3942.1,16.98912206]
[1761013767998,0.001,3942.2,3942.1,20.26512206]
[1761013768934,0.001,3942.2,3942.1,16.98912206]
[1761013769234,0.001,3942.2,3942.1,6.1917909]
[1761013769235,0.4507,3942.2,3942.1,6.1917909]
[1761013769631,0.001,3942.2,3942.1,6.1917909]
[1761013770140,0.4507,3942.2,3942.1,6.1917909]
[1761013771103,0.4507,3942.2,3942.1,6.1907909]
[1761013772222,0.001,3942.2,3942.1,6.1897909]
[1761013772835,0.001,3942.2,3942.1,10.82848708]
[1761013773138,0.001,3942.2,3942.1,7.55548708]
[1761013773540,0.001,3942.2,3942.1,10.82648708]
[1761013775724,0.001,3942.2,3942.1,5.934119]
[1761013775925,0.4688,3942.2,3942.1,10.57281518]
[1761013778057,0.001,3942.2,3942.1,10.57281518]
[1761013778252,0.001,3942.2,3942.1,5.934119]
[1761013779681,2.53533714,3944.3,3942.1,5.934119]
[1761013779682,1e-08,3943.1,3942.8,2.677]
[1761013779963,0.4678,3944.9,3944.8,2.53498276]
[1761013780135,0.2155,3945.3,3945.2,2.53472574]
[1761013780324,0.2194,3946.1,3945.3,2.53466149]
[1761013780530,0.6872,3946.1,3945.9,4.63869618]
[1761013780728,0.6872,3946.1,3946.0,5.82421186]
[1761013780945,0.2194,3946.1,3946.0,5.82421186]
[1761013781177,0.2194,3946.1,3945.4,1.04887056]
[1761013781461,0.2194,3945.5,3945.4,2.53459725]
[1761013781621,0.2194,3945.5,3945.4,5.82459725]
[1761013781823,0.6872,3945.5,3945.4,5.82459725]
[1761013783759,0.6872,3945.5,3945.4,2.53459725]
[1761013784057,0.6872,3945.5,3945.4,5.82159725]
[1761013784260,0.6872,3945.5,3945.4,2.53459725]
[1761013784459,0.6872,3945.5,3945.4,5.82159725]
[1761013786252,0.6872,3945.5,3945.4,6.65722785]
[1761013786656,0.001,3945.7,3945.6,2.53446877]
[1761013786865,0.4688,3945.7,3945.6,2.53446877]
[1761013787027,0.001,3945.7,3945.6,2.53446877]
[1761013788667,0.4688,3945.7,3945.6,5.82246877]
[1761013788831,0.4688,3945.7,3945.6,6.7417379]
[1761013789034,0.001,3945.7,3945.6,6.7417379]
[1761013789636,0.001,3945.7,3945.6,6.8681379]
[1761013793353,0.4688,3945.7,3945.6,6.8681379]
[1761013795892,0.4688,3945.7,3945.6,6.8641379]
[1761013798488,0.4688,3945.7,3945.6,5.94486877]
[1761013798726,0.4688,3945.7,3944.8,0.50688]
[1761013798727,0.4688,3945.7,3944.7,2.53504702]
[1761013799028,0.4688,3945.7,3945.5,2.53452653]
[1761013799319,0.4688,3945.7,3945.6,5.81446877]
[1761013800392,0.4688,3945.7,3945.6,3.28]
[1761013800593,0.4688,3945.7,3944.2,0.0872]
[1761013800829,0.4688,3945.7,3945.1,2.5347744]
[1761013801026,0.4688,3945.7,3945.2,3.279]
[1761013801431,10.18571096,3945.6,3943.6,0.002]
[1761013801631,9.602746,3945.4,3944.1,2.53538297]
[1761013801798,3.039,3945.2,3944.3,2.5353041]
[1761013802124,1.728,3945.2,3944.2,3.279]
[1761013802450,0.2168,3944.3,3944.2,5.81436838]
[1761013802650,0.4744,3945.1,3944.6,2.53509131]
[1761013802855,0.4744,3945.0,3944.6,2.53509131]
[1761013803053,0.2168,3944.7,3942.7,15.00106154]
[1761013803256,0.2168,3944.7,3944.2,2.53535809]
[1761013803466,0.4744,3944.6,3944.3,3.279]
[1761013803624,0.4744,3944.6,3942.8,2.53821213]
[1761013803827,0.2168,3943.7,3943.6,4.10875128]
[1761013804048,0.6912,3943.7,3943.6,1.573]
[1761013804355,0.6912,3943.7,3943.6,0.002]
[1761013807551,0.93312,3943.7,3943.6,0.002]
[1761013808055,5.665794,3943.7,3943.6,0.002]
[1761013808260,3.606996,3943.7,3943.6,0.002]
[1761013808758,5.334996,3943.7,3943.6,0.002]
[1761013809159,4.603741,3943.7,3943.6,0.002]
[1761013810423,2.4192,3943.7,3943.6,0.002]
[1761013810755,19.41352083,3943.7,3943.6,0.002]
[1761013810958,14.99698083,3943.7,3943.6,0.002]
[1761013811126,15.50386083,3943.7,3943.6,0.002]
[1761013811323,6.53921,3943.7,3943.6,0.002]
[1761013811858,8.000645,3943.7,3943.6,0.002]
[1761013812055,7.297654,3943.7,3943.6,0.002]
[1761013812760,19.35513083,3943.7,3943.6,0.002]
[1761013813076,17.75209264,3943.7,3943.6,0.002]
[1761013813728,21.86326064,3943.7,3943.6,0.002]
[1761013813935,21.18426064,3943.7,3943.6,0.002]
[1761013814855,33.82441064,3943.7,3943.6,0.002]
[1761013815562,28.43987464,3943.7,3943.6,0.002]
[1761013815863,22.50468564,3943.7,3943.6,0.002]
[1761013816074,21.95554664,3943.7,3943.6,0.002]
[1761013816276,15.48016581,3943.7,3943.6,0.002]
[1761013816564,9.04496781,3943.7,3943.6,0.002]
[1761013816750,6.28381781,3943.7,3943.6,0.002]
[1761013816954,0.04419981,3943.7,3943.6,2.53775413]
[1761013817259,0.04419981,3943.7,3943.6,2.95985413]
[1761013817490,0.2168,3944.7,3943.9,2.53554387]
[1761013817793,0.4329,3944.6,3943.9,2.53555724]
[1761013817959,0.4329,3944.6,3944.0,2.53547488]
[1761013818164,0.4329,3944.6,3944.1,2.56073227]
[1761013818386,0.2168,3944.7,3944.2,2.53536267]
[1761013819003,0.2178,3944.7,3944.4,2.53523826]
[1761013819175,0.001,3944.7,3944.3,2.53528982]
[1761013819375,0.001,3944.7,3943.6,2.53774499]
[1761013819376,0.001,3944.7,3943.6,0.002]
[1761013819599,0.4329,3944.6,3944.0,2.53546919]
[1761013820098,0.4329,3944.6,3943.6,0.002]
[1761013820398,0.001,3944.7,3944.3,2.53526707]
[1761013820594,0.001,3944.7,3944.3,2.53524927]
[1761013820798,0.001,3944.7,3944.6,2.53511129]
[1761013821771,0.001,3944.7,3944.3,0.25352493]
[1761013821963,0.001,3944.7,3944.3,6.06881501]
[1761013822166,0.001,3944.7,3944.4,2.53518222]
[1761013822465,0.001,3944.7,3944.5,2.53517497]
[1761013823095,0.001,3944.7,3944.6,2.53511129]
[1761013823796,0.001,3944.7,3944.6,3.06749848]
[1761013824191,0.001,3944.7,3944.3,0.25352493]
[1761013824380,0.001,3944.7,3944.2,3.278]
[1761013824581,0.4329,3944.6,3944.1,2.53543248]
[1761013824879,0.4329,3944.6,3944.2,2.53536458]
[1761013825191,0.4329,3944.6,3944.2,2.53535624]
[1761013825390,0.4329,3944.6,3944.0,5.81247694]
[1761013825591,0.4329,3944.6,3944.3,2.53529072]
[1761013825788,0.001,3944.7,3944.3,2.53529072]
[1761013825979,0.001,3944.7,3944.1,0.94904769]
[1761013826365,0.001,3944.7,3944.6,2.53511129]
[1761013830090,0.001,3944.7,3944.5,3.276]
[1761013830292,0.001,3944.7,3944.5,3.61624]
[1761013830607,0.001,3944.7,3944.6,2.53511129]
[1761013832195,0.001,3944.7,3944.5,5.81115505]
[1761013832504,0.001,3944.7,3944.6,2.53511129]
[1761013832879,0.001,3944.7,3944.5,3.276]
[1761013833085,0.001,3944.7,3944.4,2.53519509]
[1761013833086,0.4684,3944.7,3944.4,2.53519509]
[1761013833281,0.4684,3944.7,3944.5,2.53517515]
[1761013833482,0.4684,3944.7,3944.2,3.271]
[1761013833910,0.1264,3944.5,3944.2,3.271]
[1761013834313,0.1264,3944.5,3943.9,0.1264]
[1761013834314,0.4674,3944.4,3943.9,0.1264]
[1761013834815,0.1264,3943.9,3943.6,0.002]
[1761013835190,0.5938,3943.9,3943.6,0.002]
[1761013836014,0.1264,3943.9,3943.6,0.002]
[1761013836323,0.1264,3943.9,3943.8,2.53562553]
[1761013836687,0.1264,3943.9,3943.8,2.56098178]
[1761013838238,0.8161,3943.9,3943.6,0.002]
[1761013838396,0.6897,3943.9,3943.6,0.002]
[1761013838598,0.4674,3943.8,3943.6,0.002]
[1761013839886,1.728,3944.3,3944.1,2.53543267]
[1761013840131,0.001,3945.5,3944.6,2.53511129]
[1761013840283,0.001,3944.7,3944.6,2.53511129]
[1761013841626,0.001,3944.7,3944.6,5.81011129]
[1761013842691,0.001,3944.7,3944.4,0.195]
[1761013842889,0.001,3944.7,3943.8,2.53562553]
[1761013842890,0.4684,3944.7,3943.8,2.53562553]
[1761013843122,0.4684,3944.7,3943.7,0.1078]
[1761013843289,0.4684,3944.7,3943.8,3.275]
[1761013843793,0.4684,3944.7,3943.7,0.1078]
[1761013843994,7.769684,3944.6,3943.7,5.81067607]
[1761013844522,0.4674,3944.5,3943.7,5.81067607]
[1761013845018,0.4674,3944.5,3943.7,5.81063907]
[1761013845510,0.4674,3944.5,3943.6,3.275]
[1761013845704,0.4674,3944.5,3943.7,2.53566744]
[1761013846303,0.4674,3944.5,3943.6,5.81073936]
[1761013846516,0.4674,3944.5,3943.6,2.53773265]
[1761013846991,0.4674,3944.5,3943.7,2.53565056]
[1761013847191,1.728,3944.3,3943.7,2.53565056]
[1761013847625,0.4674,3944.2,3943.7,2.53565056]
[1761013847828,0.4674,3944.6,3943.6,0.002]
[1761013848020,0.4674,3944.6,3943.9,2.53555503]
[1761013849631,0.4674,3944.6,3944.1,2.53539]
[1761013849803,0.001,3944.7,3944.2,0.02535368]
[1761013850436,0.4684,3944.7,3944.2,0.02535368]
[1761013850731,0.1264,3944.2,3944.1,2.56073006]
[1761013850928,0.1264,3944.2,3944.1,2.53537574]
[1761013851120,0.1264,3944.2,3944.1,2.64317574]
[1761013851897,0.1264,3944.5,3943.8,2.66196685]
[1761013852101,0.1264,3944.5,3944.3,2.53529245]
[1761013852341,0.1264,3944.5,3944.0,3.271]
[1761013852518,0.1264,3944.5,3944.2,2.53532418]
[1761013854139,0.5938,3944.5,3944.1,2.53542105]
[1761013854327,0.1264,3944.5,3944.2,2.53534998]
[1761013854529,0.1264,3944.5,3944.1,2.64323267]
[1761013855036,0.1264,3944.5,3944.4,2.53523983]
[1761013855240,0.001,3944.6,3944.5,2.53517556]
[1761013856134,0.001,3944.6,3944.5,5.80517556]
[1761013856338,0.001,3944.6,3944.5,6.35367556]
[1761013860208,0.001,3944.6,3944.5,2.66157556]
[1761013860408,0.001,3944.6,3944.5,5.92857556]
[1761013860733,0.001,3944.6,3944.5,6.35067556]
[1761013861052,0.001,3944.6,3944.5,6.98525556]
[1761013861260,0.001,3944.6,3944.5,6.73115556]
[1761013862040,0.001,3944.6,3944.5,6.98525556]
[1761013862645,0.001,3944.6,3944.5,6.73115556]
[1761013864176,0.001,3945.1,3945.0,2.53485424]
[1761013864474,0.001,3945.1,3945.0,6.30873424]
[1761013864773,0.001,3945.1,3945.0,3.267]
[1761013864964,0.001,3945.1,3945.0,5.80185424]
[1761013865169,0.001,3945.1,3944.3,0.4221]
[1761013865342,0.001,3945.1,3944.4,3.268]
[1761013865847,0.001,3945.1,3944.1,0.1078]
[1761013866046,0.4747,3945.1,3944.6,2.53510448]
[1761013866364,0.4747,3945.1,3944.7,3.267]
[1761013866550,0.4747,3945.1,3944.1,0.1078]
[1761013866551,0.4747,3945.1,3944.5,2.53515475]
[1761013866752,0.001,3945.1,3944.6,3.266]
[1761013866981,0.001,3945.1,3945.0,2.53485424]
[1761013867694,0.001,3945.1,3944.9,2.534905]
[1761013868269,0.4737,3945.0,3944.7,3.266]
[1761013868658,0.2197,3944.9,3944.7,3.266]
[1761013869086,0.6934,3944.9,3944.7,3.266]
[1761013869266,0.6934,3944.9,3944.8,2.53498276]
[1761013869463,0.001,3945.1,3944.7,3.266]
[1761013869663,0.001,3945.1,3945.0,2.53485424]
[1761013870391,0.001,3945.1,3945.0,2.56020278]
[1761013870961,0.001,3945.1,3945.0,2.98230278]
[1761013871168,0.001,3945.1,3945.0,3.10870278]
[1761013871373,0.001,3945.1,3945.0,3.08335424]
[1761013871778,0.001,3945.1,3945.0,3.10870278]
[1761013872392,0.001,3945.1,3945.0,6.37270278]
[1761013872699,0.001,3945.1,3945.0,6.34735424]
[1761013873060,0.001,3945.1,3945.0,6.85423424]
[1761013873266,0.001,3945.1,3945.0,5.92525424]
[1761013876493,0.001,3945.1,3945.0,6.34735424]
[1761013876894,0.001,3945.1,3945.0,5.92525424]
[1761013877191,0.001,3945.1,3945.0,6.34735424]
[1761013878071,0.001,3945.1,3945.0,6.85423424]
[1761013878865,0.001,3945.1,3945.0,5.92525424]
[1761013879966,0.4373,3945.1,3945.0,3.3854]
[1761013880405,0.4373,3945.1,3945.0,5.92025424]
[1761013880809,0.4373,3945.1,3945.0,3.3854]
[1761013881176,0.4373,3945.1,3944.6,0.002]
[1761013881401,0.4373,3945.1,3944.8,0.1264]
[1761013881701,0.4373,3945.1,3944.9,2.5349185]
[1761013881866,0.4373,3945.1,3945.0,5.79385424]
[1761013883483,0.4373,3945.1,3945.0,3.259]
[1761013884695,0.001,3945.1,3945.0,5.79385424]
[1761013885495,0.4373,3945.1,3945.0,3.259]
[1761013886196,0.4373,3945.1,3945.0,5.79385424]
[1761013886567,0.001,3945.1,3945.0,5.79385424]
[1761013888101,0.4373,3945.1,3945.0,3.259]
[1761013889102,0.4373,3945.1,3944.8,0.1264]
[1761013889288,0.4373,3945.1,3944.6,0.002]
[1761013889289,0.2279,3944.9,3944.6,0.002]
[1761013889470,0.23932,3944.8,3944.6,0.002]
[1761013889672,0.67562,3944.8,3944.6,0.002]
[1761013890167,0.4363,3944.7,3944.6,0.002]
[1761013892627,0.2279,3944.9,3944.6,0.002]
[1761013892928,0.6856,3944.9,3944.6,0.002]
[1761013893425,0.4577,3944.8,3944.6,0.002]
[1761013900811,0.3543,3944.9,3944.6,0.002]
[1761013901011,0.3543,3944.9,3944.6,2.53705897]
[1761013901211,0.001,3945.1,3944.8,2.53498276]
[1761013901414,0.001,3945.1,3944.9,2.56026462]
[1761013901644,0.001,3945.1,3944.9,5.81526462]
[1761013901851,0.001,3945.1,3944.9,5.78991544]
[1761013903463,0.001,3945.1,3944.9,3.255]
[1761013903662,0.001,3945.1,3945.0,2.68660278]
[1761013903950,0.001,3945.1,3945.0,3.10870278]
[1761013904114,0.001,3945.1,3945.0,0.1264]
[1761013904315,0.001,3945.1,3945.0,3.3814]
[1761013904747,0.001,3945.1,3945.0,5.91625424]
[1761013906457,0.001,3945.1,3945.0,6.33835424]
[1761013908463,0.001,3945.1,3945.0,6.93724497]
[1761013908665,0.001,3945.1,3945.0,6.71883424]
[1761013908867,0.001,3945.1,3945.0,5.78985424]
[1761013910167,0.001,3945.1,3945.0,6.71883424]
[1761013913070,0.001,3945.1,3945.0,8.44683424]
[1761013913272,0.001,3945.1,3945.0,10.90861509]
[1761013914154,0.001,3945.1,3945.0,9.18061509]
[1761013914333,0.001,3945.1,3945.0,6.71883424]
[1761013916873,0.001,3945.1,3945.0,6.29673424]
[1761013917069,0.001,3945.1,3945.0,6.71883424]
[1761013917647,0.001,3945.1,3945.0,6.29673424]
[1761013917848,0.001,3945.1,3945.0,3.04173424]
[1761013918071,0.001,3945.1,3945.0,6.29573424]
[1761013918443,0.001,3945.1,3945.0,6.42213424]
[1761013919772,0.001,3945.1,3945.0,6.84423424]
[1761013920271,0.001,3945.1,3945.0,6.42213424]
[1761013920676,0.001,3945.1,3945.0,7.73994008]
[1761013922453,0.001,3945.1,3945.0,4.48594008]
[1761013922653,0.001,3945.1,3945.0,6.84423424]
[1761013923561,0.001,3945.1,3945.0,3.59023424]
[1761013923885,0.001,3945.1,3945.0,6.84423424]
[1761013924079,0.001,3945.1,3945.0,2.53485424]
[1761013924261,0.001,3945.1,3945.0,5.81420278]
[1761013924582,0.001,3945.1,3945.0,5.78885424]
[1761013924751,0.001,3945.1,3945.0,6.29573424]
[1761013925080,0.001,3945.1,3945.0,8.44583424]
[1761013925585,0.001,3945.1,3945.0,8.02373424]
[1761013926453,0.001,3945.1,3945.0,8.44583424]
[1761013926968,0.001,3945.1,3945.0,7.51685424]
[1761013927481,0.4677,3945.1,3945.0,4.26285424]
[1761013927644,0.4677,3945.1,3945.0,7.51685424]
[1761013927979,0.001,3945.1,3945.0,2.53485424]
[1761013928195,0.4677,3945.1,3945.0,5.78885424]
[1761013929499,0.4677,3945.1,3944.6,0.002]
[1761013929797,0.2264,3944.7,3944.6,3.256]
[1761013930291,0.2264,3945.0,3944.9,2.5349185]
[1761013930500,0.001,3945.1,3945.0,2.53485424]
[1761013930683,0.001,3945.1,3945.0,2.56020278]
[1761013930862,0.001,3945.1,3945.0,2.53485424]
[1761013931263,0.4677,3945.1,3945.0,2.53485424]
[1761013931458,0.001,3945.1,3945.0,2.53485424]
[1761013931894,0.001,3945.1,3945.0,3.48918278]
[1761013932982,0.001,3945.1,3945.0,3.46383424]
[1761013933589,0.001,3945.1,3945.0,4.38911415]
[1761013933777,0.001,3945.1,3945.0,4.41446269]
[1761013934164,0.001,3945.1,3945.0,4.54086269]
[1761013935375,0.001,3945.1,3945.0,4.51551415]
[1761013935771,0.001,3945.1,3945.0,3.59023424]
[1761013936099,0.001,3945.1,3945.0,6.42213424]
[1761013936676,0.001,3945.1,3945.0,0.1264]
[1761013936870,0.4472,3945.1,3945.0,5.41185424]
[1761013937274,0.001,3945.1,3945.0,5.41185424]
[1761013938773,0.001,3945.1,3945.0,5.83395424]
[1761013939285,0.001,3945.1,3945.0,5.41185424]
[1761013941112,0.001,3945.1,3945.0,5.41385424]
[1761013941440,0.001,3945.1,3945.0,3.83861765]
[1761013941609,0.001,3945.1,3945.0,6.29673424]
[1761013942825,0.001,3945.1,3945.0,6.71883424]
[1761013943192,0.001,3945.1,3945.0,6.29673424]
[1761013945533,0.001,3945.1,3945.0,2.53685424]
[1761013945700,0.001,3945.1,3945.0,6.29673424]
[1761013946732,0.001,3945.1,3945.0,6.42313424]
[1761013948636,0.4472,3945.1,3945.0,2.66325424]
[1761013948803,0.4472,3945.1,3945.0,5.91625424]
[1761013949404,0.001,3945.1,3945.0,5.91625424]
[1761013950409,0.001,3945.1,3945.0,6.42313424]
[1761013952955,0.001,3945.1,3945.0,6.67723424]
[1761013953244,0.001,3945.1,3945.0,6.42313424]
[1761013953542,0.001,3945.1,3945.0,5.91625424]
[1761013953543,0.4721,3945.1,3945.0,5.91625424]
[1761013954246,0.4721,3945.1,3945.0,2.66325424]
[1761013954466,0.4721,3945.1,3945.0,5.91625424]
[1761013955336,0.4721,3945.1,3945.0,2.66325424]
[1761013955817,0.4721,3945.1,3945.0,5.91625424]
[1761013957450,0.4721,3945.1,3945.0,3.3814]
[1761013957861,0.4721,3945.1,3945.0,0.002]
[1761013958016,0.4721,3945.1,3945.0,3.255]
[1761013959419,0.4721,3945.1,3945.0,5.78985424]
[1761013959819,0.4721,3945.1,3945.0,3.255]
[1761013960248,0.4721,3945.1,3945.0,5.78985424]
[1761013961259,0.001,3945.1,3945.0,5.78985424]
[1761013961623,0.4721,3945.1,3945.0,5.78985424]
[1761013964957,0.4721,3945.1,3945.0,3.255]
[1761013965841,0.4721,3945.1,3945.0,5.78985424]
[1761013967656,0.4721,3945.1,3945.0,3.255]
[1761013968068,0.4721,3945.1,3945.0,5.78985424]
[1761013968949,0.001,3945.1,3945.0,5.78985424]
[1761013971257,0.001,3945.1,3945.0,6.21195424]
[1761013971437,0.001,3945.1,3945.0,6.33835424]
[1761013971633,0.001,3945.1,3945.0,6.84523424]
[1761013972158,0.001,3945.1,3945.0,2.53685424]